fUSD/lending_fUSD_20241019
["ID","MTS","AMOUNT","RATE_DAILY","PERIOD"]
[340487568,1729314631993,-150.0,0.00023866,2]
[340487569,1729314632002,-444.21425343,0.00023878,2]
[340487570,1729314632011,-150.0,0.00023887,2]
[340487571,1729314632020,-162.28453828,0.0002389,2]
[340487572,1729314632029,-2074.18716338,0.000239,2]
[340487574,1729314632039,-150.0,0.00023912,2]
[340487576,1729314632048,-150.0,0.00023913,2]
[340487577,1729314632057,-150.0,0.00023915,2]
[340487578,1729314632066,-150.0,0.00023917,2]
[340487579,1729314632075,-150.0,0.00023924,2]
[340487580,1729314632085,-150.0,0.00023939,2]
[340487581,1729314632094,-150.101914,0.00023944,2]
[340487582,1729314632103,-150.101914,0.00023944,3]
[340487583,1729314632113,-150.101914,0.00023944,4]
[340487584,1729314632122,-150.101914,0.00023944,5]
[340487585,1729314632131,-150.101914,0.00023945,6]
[340487586,1729314632141,-150.101914,0.00023945,5]
[340487587,1729314632150,-150.101914,0.00023945,4]
[340487588,1729314632159,-150.101914,0.00023945,3]
[340487589,1729314632168,-150.101914,0.00023945,2]
[340487590,1729314632177,-150.101914,0.00023946,2]
[340487591,1729314632187,-150.101914,0.00023946,3]
[340487592,1729314632196,-150.101914,0.00023946,4]
[340487593,1729314632205,-150.101914,0.00023946,5]
[340487594,1729314632214,-150.101914,0.00023946,6]
[340487595,1729314632224,-150.101914,0.00023947,6]
[340487596,1729314632233,-150.101914,0.00023947,5]
[340487597,1729314632242,-150.101914,0.00023947,4]
[340487598,1729314632251,-150.101914,0.00023947,3]
[340487599,1729314632261,-150.101914,0.00023947,2]
[340487600,1729314632270,-150.101914,0.00023948,2]
[340487601,1729314632279,-150.101914,0.00023948,3]
[340487602,1729314632288,-150.101914,0.00023948,4]
[340487603,1729314632298,-150.101914,0.00023948,5]
[340487604,1729314632307,-150.101914,0.00023948,6]
[340487605,1729314632316,-155.1,0.00023948,2]
[340487606,1729314632326,-150.0,0.00023953,2]
[340487607,1729314632335,-150.0,0.00023955,2]
[340487608,1729314632344,-58877.28392747,0.00023958,12]
[340487609,1729314632357,-561.75930824,0.00023958,12]
[340487610,1729314632371,-26488.08516579,0.00023958,12]
[340487611,1729314632383,-21006.25705037,0.00023958,12]
[340487612,1729314632403,-2334.45599337,0.00023958,12]
[340487613,1729314632414,-9392.69226993,0.00023958,12]
[340487614,1729314632426,-1381.46995,0.00023958,12]
[340487615,1729314632437,-1092.24,0.00023958,12]
[340487618,1729314638020,-193.41,0.00018622,2]
[340487619,1729314638030,-1237.17680764,0.00023958,12]
[340487620,1729314638041,-65516.853316,0.00023958,12]
[340487623,1729314639847,-4829.04030226,0.00023958,12]
[340487680,1729314796240,500.0,0.00027,120]
[340487681,1729314799054,223.596609,0.00027,120]
[340487682,1729315151109,160.7,0.00010959,2]
[340487684,1729315395078,428.456651,0.00027,120]
[340487685,1729315508122,65730.36022813,0.00011,2]
[340487686,1729315569405,350.0,0.00027,60]
[340487687,1729315598305,150.0,0.0001,2]
[340487688,1729315598327,150.0,0.0001,2]
[340487689,1729315598348,150.0,0.0001,2]
[340487690,1729315598369,100.0,0.0001,2]
[340487691,1729315626140,-1224.62113228,0.00011,2]
[340487692,1729315636116,-858.17312865,0.00011,2]
[340487693,1729315776829,-156.85,0.00010959,2]
[340487694,1729315776852,-300.0,0.00010999,2]
[340487695,1729315776876,-100189.41961999,0.00011,2]
[340487696,1729315830430,-150.0,0.00011,2]
[340487697,1729315830452,-150.0,0.00011,2]
[340487698,1729315830474,-150.0,0.00011,2]
[340487699,1729315830496,-150.0,0.00011,2]
[340487700,1729315830517,-150.0,0.00011,2]
[340487701,1729315830539,-150.0,0.00011,2]
[340487702,1729315830559,-150.0,0.00011,2]
[340487703,1729315830581,-150.0,0.00011,2]
[340487704,1729315830603,-150.0,0.00011,2]
[340487705,1729315830623,-150.0,0.00011,2]
[340487706,1729315830644,-150.0,0.00011,2]
[340487707,1729315830664,-150.0,0.00011,2]
[340487708,1729315830685,-150.0,0.00011,2]
[340487709,1729315830706,-150.0,0.00011,2]
[340487710,1729315830727,-150.0,0.00011,2]
[340487711,1729315830747,-150.0,0.00011,2]
[340487712,1729315830767,-150.0,0.00011,2]
[340487713,1729315830788,-150.0,0.00011,2]
[340487714,1729315830808,-150.0,0.00011,2]
[340487715,1729315830828,-150.0,0.00011,2]
[340487716,1729315830850,-150.0,0.00011,2]
[340487717,1729315830879,-178.98117049,0.00011,2]
[340487722,1729315832021,-600.0,0.00012,2]
[340487723,1729315832030,-1550.46127826,0.00012666,2]
[340487724,1729315832039,-1185.30000004,0.00013,4]
[340487725,1729315832048,-650.0,0.00014,2]
[340487726,1729315832056,-369.429,0.00016246,2]
[340487727,1729315832066,-183.07,0.00017422,2]
[340487728,1729315832075,-300.0,0.00018621,2]
[340487729,1729315832083,-500.0,0.00018622,2]
[340487730,1729315832093,-500.0,0.00018622,2]
[340487731,1729315832102,-500.0,0.00018622,2]
[340487732,1729315832111,-500.0,0.00018622,2]
[340487733,1729315832120,-500.0,0.00018622,2]
[340487734,1729315832130,-500.0,0.00018622,2]
[340487735,1729315832139,-500.0,0.00018622,2]
[340487736,1729315832151,-335.23892559,0.00018622,2]
[340487737,1729315832162,-314.76107441,0.00018622,2]
[340487738,1729315832172,-165.3,0.00019726,3]
[340487739,1729315832181,-496.47,0.0002007,2]
[340487740,1729315832192,-2520.92,0.00020956,2]
[340487741,1729315832201,-200.0,0.00020956,2]
[340487742,1729315832210,-1000.0,0.00021018,2]
[340487743,1729315832221,-2454.0,0.000212,2]
[340487744,1729315832230,-23890.0,0.00021447,2]
[340487745,1729315832240,-555.32,0.00021507,2]
[340487746,1729315832250,-250.0,0.00021507,2]
[340487747,1729315832259,-250.0,0.00021507,2]
[340487748,1729315832268,-250.0,0.00021914,2]
[340487749,1729315832278,-225.19,0.00021932,2]
[340487750,1729315832287,-8994.65,0.00021932,2]
[340487751,1729315832296,-2751.0,0.00021974,2]
[340487752,1729315832306,-150.9,0.00022287,30]
[340487753,1729315832316,-496.47,0.00022334,2]
[340487754,1729315832325,-164.03,0.00022669,2]
[340487755,1729315832334,-164.03,0.00022726,2]
[340487756,1729315832343,-164.03,0.00022782,2]
[340487757,1729315832352,-164.61,0.00022885,2]
[340487758,1729315832361,-1000.0,0.00023,23]
[340487759,1729315832370,-167.0,0.0002306,2]
[340487760,1729315832379,-182.043,0.00023096,2]
[340487762,1729315832389,-17455.0,0.00023463,7]
[340487764,1729315832399,-1000.0,0.00023645,2]
[340487766,1729315832409,-399.79282806,0.00023856,2]
[340487768,1729315832419,-150.0,0.00023862,2]
[340487769,1729315832428,-162.28453828,0.00023872,2]
[340487770,1729315832437,-150.0,0.00023888,2]
[340487771,1729315832446,-150.0,0.00023923,2]
[340487772,1729315832455,-588.15717206,0.00023945,2]
[340487773,1729315832464,-368668.62396254,0.00023945,12]
[340487774,1729315832477,-3331.51205211,0.00023945,12]
[340487775,1729315832488,-470.59679604,0.00023945,12]
[340487776,1729315832499,-846.47,0.00023945,12]
[340487777,1729315832510,-350.2299999,0.00023945,12]
[340487778,1729315832521,-1999.71839229,0.00023945,12]
[340487779,1729315832532,-673.37,0.00023945,12]
[340487780,1729315832543,-328.71756018,0.00023945,12]
[340487781,1729315832552,-478.18696987,0.00023946,5]
[340487782,1729315832564,-332.89422102,0.00023946,5]
[340487783,1729315832575,-3972.48200913,0.00023946,5]
[340487784,1729315832586,-720.36814939,0.00023946,5]
[340487785,1729315832597,-3442.740027,0.00023946,5]
[340487786,1729315837986,-1216.90286394,0.00023946,5]
[340487787,1729315838102,-1857.47566138,0.00023946,5]
[340487788,1729315838156,-17821.24365286,0.00023946,5]
[340487789,1729315838167,-715.0,0.00023946,5]
[340487790,1729315838223,-4040.85305081,0.00023946,5]
[340487791,1729315838234,-2994.70766623,0.00023946,5]
[340487792,1729315838395,-81874.89212737,0.00023946,5]
[340487793,1729315838404,-399.792828,0.00023972,2]
[340487794,1729315838413,-119467.746399,0.0002398,5]
[340487795,1729315838423,-9377.57809016,0.0002398,5]
[340487796,1729315838435,-13274.1940444,0.00023982,5]
[340487797,1729315838445,-151.0,0.0002399,7]
[340487798,1729315838454,-151.0,0.0002399,7]
[340487799,1729315838463,-156.522076,0.0002399,7]
[340487800,1729315838472,-151.0,0.0002399,7]
[340487801,1729315838481,-151.0,0.0002399,7]
[340487802,1729315838490,-151.0,0.0002399,7]
[340487803,1729315838500,-151.0,0.0002399,7]
[340487804,1729315838509,-151.0,0.0002399,7]
[340487805,1729315838518,-151.0,0.0002399,7]
[340487806,1729315838528,-151.0,0.0002399,7]
[340487807,1729315838537,-151.0,0.0002399,7]
[340487808,1729315838546,-151.0,0.0002399,7]
[340487809,1729315838555,-151.0,0.0002399,7]
[340487810,1729315838565,-182.046224,0.0002399,7]
[340487812,1729315838575,-182.046224,0.0002399,7]
[340487814,1729315838584,-151.0,0.0002399,7]
[340487816,1729315838593,-151.0,0.0002399,7]
[340487818,1729315838603,-26548.3880888,0.0002399,5]
[340487820,1729315838612,-151.0,0.0002399,7]
[340487822,1729315838622,-16410.7616578,0.0002399,5]
[340487824,1729315838631,-2500.0,0.00023992,5]
[340487825,1729315838641,-375.0,0.00023999,2]
[340487827,1729315838650,-232826.47481369,0.00024,5]
[340487845,1729315840117,-24074.08639427,0.00024,5]
[340487846,1729315840131,-5618.19018985,0.00024,5]
[340487863,1729315845979,-273.574,0.00024,5]
[340487866,1729315846254,-13959.78713611,0.00024,5]
[340487867,1729316165081,180.0,0.00024758,120]
[340487869,1729316557876,150.0,0.00010353,2]
[340487870,1729316557898,50.23831791,0.00010353,2]
[340487871,1729316795209,831.8,0.00027,60]
[340487872,1729316840144,-1455.01919718,0.00010859,2]
[340487873,1729316853093,-334.50574842,0.00010859,2]
[340487889,1729317032137,-725.13730522,0.00010859,2]
[340487892,1729317032147,-206.55,0.00010959,2]
[340487893,1729317032155,-158.23,0.00010959,2]
[340487895,1729317032165,-183.07,0.00017064,2]
[340487897,1729317032174,-300.0,0.00017445,2]
[340487898,1729317032183,-300.0,0.00017445,2]
[340487899,1729317032192,-6679.13871856,0.00017446,2]
[340487900,1729317032201,-150.0,0.00017507,2]
[340487901,1729317032210,-251.0,0.00017545,2]
[340487902,1729317032221,-567.353,0.00017546,2]
[340487903,1729317032232,-1245.0,0.00017546,2]
[340487904,1729317032243,-228.96013698,0.00017546,2]
[340487905,1729317032255,-468.72740377,0.00017546,2]
[340487906,1729317032268,-114.47045925,0.00017546,2]
[340487907,1729317032277,-454.252,0.00017546,2]
[340487908,1729317032291,-935.0,0.00017546,2]
[340487909,1729317032302,-152.956,0.00017546,2]
[340487910,1729317032313,-555.0,0.00017546,2]
[340487911,1729317032323,-2036.3700836,0.00017546,2]
[340487912,1729317032347,-0.8349164,0.00017546,2]
[340487913,1729317032355,-2455.75022136,0.00017546,2]
[340487914,1729317032367,-901.24977864,0.00017546,2]
[340487918,1729317032539,-315.87237218,0.00017546,2]
[340487920,1729317032555,-507.12762782,0.00017546,2]
[340487922,1729317032566,-8116.0,0.00017546,2]
[340487924,1729317032575,-169.174,0.00017546,2]
[340487926,1729317032584,-220.173,0.00017546,2]
[340487928,1729317032595,-482.52754127,0.00017546,2]
[340487931,1729317032608,-5403.47245873,0.00017546,2]
[340487933,1729317032618,-420.0,0.00019045,2]
[340487935,1729317032629,-508.57,0.0001922,2]
[340487937,1729317032638,-265.905,0.00020546,2]
[340487939,1729317032647,-450.0,0.00020546,2]
[340487941,1729317032656,-150.0,0.00020546,2]
[340487943,1729317032665,-482.0,0.00020792,2]
[340487945,1729317032674,-250.0,0.00021088,2]
[340487947,1729317032683,-769.38,0.00021088,2]
[340487949,1729317032691,-987.0,0.00021104,2]
[340487951,1729317032700,-2639.0,0.000212,2]
[340487953,1729317032709,-985.0,0.000212,2]
[340487955,1729317032718,-250.0,0.00021216,2]
[340487956,1729317032727,-684.99,0.0002124,2]
[340487958,1729317032736,-20487.25,0.0002124,2]
[340487960,1729317032745,-600.0,0.00021247,2]
[340487962,1729317032755,-200.0,0.00021254,2]
[340487964,1729317032766,-200.0,0.00021254,2]
[340487966,1729317032775,-366.57,0.00021259,2]
[340487968,1729317032785,-326.86,0.00021262,2]
[340487970,1729317032794,-158.95,0.0002127,2]
[340487972,1729317032803,-171.52,0.00021273,2]
[340487974,1729317032813,-500.0,0.00021305,2]
[340487976,1729317032823,-1367.59,0.00021325,2]
[340487978,1729317032833,-453.92,0.00021361,2]
[340487980,1729317032844,-402.44,0.00021373,2]
[340487982,1729317032853,-564.8,0.0002138,2]
[340487983,1729317032862,-1559.75,0.00021386,2]
[340487985,1729317032872,-2751.0,0.00021387,2]
[340487987,1729317032890,-200.0,0.00021388,2]
[340487989,1729317032899,-418.52,0.00021404,2]
[340487991,1729317032908,-274.83,0.00021404,2]
[340487993,1729317032918,-508.57,0.00021484,2]
[340487995,1729317032927,-1431.93,0.00021485,2]
[340487996,1729317032936,-350.03,0.00021486,2]
[340487997,1729317032945,-283.65,0.000215,2]
[340487998,1729317032954,-243.89,0.0002156,2]
[340487999,1729317032963,-250.0,0.00021741,2]
[340488000,1729317032972,-7550.4996663,0.00021757,2]
[340488001,1729317032995,-895.45236339,0.00021757,2]
[340488002,1729317033006,-657.4833942,0.00021757,2]
[340488003,1729317033017,-963.48757611,0.00021757,2]
[340488004,1729317033027,-155.7,0.0002176,2]
[340488005,1729317033036,-400.0,0.00021815,2]
[340488006,1729317033045,-209.0,0.00021927,2]
[340488007,1729317033055,-160.0,0.00022015,2]
[340488008,1729317033065,-150.9,0.00022137,30]
[340488009,1729317033074,-251.8,0.00022472,2]
[340488010,1729317033083,-251.8,0.00022478,2]
[340488011,1729317033094,-251.8,0.00022484,2]
[340488012,1729317033103,-251.8,0.0002249,2]
[340488013,1729317033113,-251.8,0.00022496,2]
[340488014,1729317033123,-251.8,0.00022502,2]
[340488015,1729317033133,-251.8,0.00022508,2]
[340488016,1729317033143,-251.8,0.00022514,2]
[340488017,1729317033152,-251.8,0.0002252,2]
[340488018,1729317033162,-251.8,0.00022526,2]
[340488019,1729317033172,-251.8,0.00022531,2]
[340488020,1729317033182,-251.8,0.00022537,2]
[340488021,1729317033191,-251.8,0.00022543,2]
[340488022,1729317033201,-251.8,0.00022549,2]
[340488023,1729317033211,-251.8,0.00022555,2]
[340488024,1729317033221,-251.8,0.00022561,2]
[340488025,1729317033230,-251.8,0.00022567,2]
[340488026,1729317033240,-251.8,0.00022573,2]
[340488027,1729317033251,-251.8,0.00022579,2]
[340488028,1729317033260,-251.8,0.00022585,2]
[340488029,1729317033270,-209.0,0.00023024,2]
[340488030,1729317033279,-2303.17,0.00023097,2]
[340488031,1729317033291,-539.67,0.00023177,2]
[340488032,1729317033301,-500.0,0.00023291,2]
[340488033,1729317033311,-826.38,0.0002337,2]
[340488034,1729317033320,-227.83,0.00023438,2]
[340488035,1729317033333,-182.043,0.00023645,4]
[340488036,1729317033342,-508.57,0.00023747,2]
[340488037,1729317033352,-760.96289345,0.000238,2]
[340488038,1729317033362,-500.0,0.00023873,2]
[340488039,1729317033372,-164.1118502,0.0002389,2]
[340488040,1729317033383,-5822.77631442,0.0002389,2]
[340488041,1729317033397,-95543.26338558,0.0002389,2]
[340488042,1729317033407,-303.3559,0.000239,2]
[340488043,1729317033417,-3708.15162065,0.000239,2]
[340488044,1729317033427,-162.02955995,0.000239,2]
[340488045,1729317033437,-170.61461797,0.000239,2]
[340488046,1729317033447,-436.09254634,0.000239,2]
[340488047,1729317033457,-600.0,0.00023903,2]
[340488048,1729317033467,-760.96289341,0.00023922,2]
[340488049,1729317033476,-1003.03,0.0002397,2]
[340488050,1729317033487,-203.81067684,0.00023979,2]
[340488051,1729317033496,-2101.20389363,0.0002398,5]
[340488052,1729317033506,-67238.5245962,0.0002398,5]
[340488053,1729317033516,-1003.03,0.00023989,2]
[340488054,1729317033526,-217.33020738,0.0002399,2]
[340488055,1729317033536,-1003.03,0.0002399,2]
[340488056,1729317033546,-1003.03,0.0002399,2]
[340488057,1729317033555,-1003.03,0.0002399,2]
[340488058,1729317033566,-151.0,0.0002399,7]
[340488059,1729317033575,-151.0,0.0002399,7]
[340488060,1729317033584,-152.115697,0.0002399,7]
[340488061,1729317033594,-151.0,0.0002399,7]
[340488062,1729317033604,-151.0,0.0002399,7]
[340488063,1729317033614,-151.0,0.0002399,7]
[340488064,1729317033623,-151.0,0.0002399,7]
[340488065,1729317033634,-151.0,0.0002399,7]
[340488066,1729317033643,-151.0,0.0002399,7]
[340488067,1729317033653,-151.0,0.0002399,7]
[340488068,1729317033663,-152.320935,0.0002399,7]
[340488069,1729317033673,-151.0,0.0002399,7]
[340488070,1729317033684,-151.0,0.0002399,7]
[340488071,1729317033694,-154.443451,0.0002399,7]
[340488072,1729317033704,-151.0,0.0002399,7]
[340488073,1729317033714,-151.0,0.0002399,7]
[340488074,1729317033723,-161.688923,0.0002399,7]
[340488075,1729317033733,-151.0,0.0002399,7]
[340488076,1729317033743,-151.0,0.0002399,7]
[340488077,1729317033753,-151.0,0.0002399,7]
[340488078,1729317033763,-151.0,0.0002399,7]
[340488079,1729317033773,-289.589894,0.0002399,7]
[340488080,1729317033784,-151.0,0.0002399,7]
[340488081,1729317033794,-151.0,0.0002399,7]
[340488082,1729317033803,-151.0,0.0002399,7]
[340488083,1729317033812,-151.0,0.0002399,7]
[340488084,1729317033822,-151.0,0.0002399,7]
[340488085,1729317033832,-151.0,0.0002399,7]
[340488086,1729317033841,-151.0,0.0002399,7]
[340488087,1729317033851,-151.0,0.0002399,7]
[340488088,1729317033860,-151.0,0.0002399,7]
[340488089,1729317033870,-151.0,0.0002399,7]
[340488090,1729317033879,-151.0,0.0002399,7]
[340488091,1729317033889,-151.0,0.0002399,7]
[340488092,1729317033899,-151.0,0.0002399,7]
[340488093,1729317033908,-151.563776,0.0002399,7]
[340488094,1729317033918,-152.08527,0.0002399,7]
[340488095,1729317033927,-414.691617,0.0002399,7]
[340488096,1729317033936,-414.691617,0.0002399,7]
[340488097,1729317033946,-414.691617,0.0002399,7]
[340488098,1729317033955,-414.691617,0.0002399,7]
[340488099,1729317033965,-151.986746,0.0002399,7]
[340488100,1729317033975,-333.613247,0.0002399,7]
[340488101,1729317033984,-333.613247,0.0002399,7]
[340488102,1729317033993,-151.0,0.0002399,7]
[340488103,1729317034003,-152.346264,0.0002399,7]
[340488104,1729317034012,-333.613247,0.0002399,7]
[340488105,1729317034022,-333.613247,0.0002399,7]
[340488106,1729317034033,-152.083038,0.0002399,7]
[340488107,1729317034042,-151.0,0.0002399,7]
[340488108,1729317034051,-151.0,0.0002399,7]
[340488109,1729317034061,-151.0,0.0002399,7]
[340488110,1729317034070,-171.391601,0.0002399,7]
[340488111,1729317034080,-171.391601,0.0002399,7]
[340488112,1729317034089,-171.391601,0.0002399,7]
[340488113,1729317034098,-171.391601,0.0002399,7]
[340488114,1729317034108,-151.0,0.0002399,7]
[340488115,1729317034117,-151.0,0.0002399,7]
[340488116,1729317034128,-411.71002044,0.00023999,2]
[340488117,1729317034138,-375.0,0.00023999,2]
[340488118,1729317034148,-34418.1370728,0.00023999,2]
[340488119,1729317034158,-6264.5808658,0.00023999,2]
[340488120,1729317034168,-384.86711229,0.00023999,2]
[340488121,1729317034178,-1108.209514,0.00023999,2]
[340488122,1729317034188,-158399.03809434,0.00024,12]
[340488123,1729317034200,-4700.0,0.00024,12]
[340488125,1729317038119,-461.545,0.00017546,2]
[340488126,1729317038504,-621.455,0.00017546,2]
[340488127,1729317038514,-6281.73181663,0.00024,12]
[340488128,1729317038526,-33788.7975283,0.00024,12]
[340488136,1729317040240,-381.35844663,0.00024,12]
[340488138,1729317040465,-100298.1139603,0.00024,12]
[340488139,1729317040474,-2500.0,0.00024,5]
[340488140,1729317040483,-113711.01461919,0.00024,5]
[340488147,1729317043345,-674.24,0.00024,5]
[340488150,1729317046149,-100216.5536087,0.00024,5]
[340488151,1729317046262,-2192.75973465,0.00024,5]
[340488153,1729317113877,506.8189118,0.0001,30]
[340488154,1729317256426,295.55,0.00026003,120]
[340488155,1729317402706,550.0,0.0001,2]
[340488156,1729317707325,999.0,0.00027,60]
[340488157,1729317719346,455.0,0.000215,40]
[340488158,1729317729766,355.0,0.00021,30]
[340488159,1729318039142,-150.0,0.00010914,2]
[340488160,1729318039169,-222.0,0.00010939,2]
[340488161,1729318039192,-222.0,0.00010958,2]
[340488162,1729318039215,-105.51147054,0.00010959,2]
[340488166,1729318232239,-151.63404891,0.00010936,2]
[340488167,1729318232250,-55.45852946,0.00010959,2]
[340488168,1729318232260,-160.7,0.00010959,2]
[340488169,1729318232270,-600.0,0.00012,2]
[340488170,1729318232279,-255.0,0.0001726,2]
[340488171,1729318232289,-981.91184537,0.0001726,2]
[340488172,1729318232305,-1926.54230464,0.0001726,2]
[340488173,1729318232320,-3477.31984675,0.0001726,2]
[340488174,1729318232330,-809.181,0.00017542,2]
[340488175,1729318232340,-1150.0,0.00017542,2]
[340488176,1729318232349,-150.0,0.00017542,2]
[340488177,1729318232358,-150.0,0.00017545,2]
[340488178,1729318232368,-560.0,0.00017546,2]
[340488179,1729318232377,-812.0,0.00017546,2]
[340488180,1729318232386,-1245.0,0.00017546,2]
[340488181,1729318232395,-449.0,0.00017546,2]
[340488182,1729318232405,-935.0,0.00017546,2]
[340488183,1729318232414,-555.0,0.00017546,2]
[340488184,1729318232423,-150.0,0.00017546,2]
[340488185,1729318232432,-1909.0,0.00017546,2]
[340488186,1729318232442,-815.7271568,0.00017546,2]
[340488187,1729318232453,-665.8573889,0.00017546,2]
[340488188,1729318232466,-1875.4154543,0.00017546,2]
[340488189,1729318232477,-172.23396589,0.00017546,2]
[340488190,1729318232492,-636.76603411,0.00017546,2]
[340488191,1729318232502,-160.60690874,0.00019452,2]
[340488192,1729318232517,-94.39309126,0.00019452,2]
[340488193,1729318232526,-288.0,0.00019726,2]
[340488194,1729318232535,-499.99,0.00019726,2]
[340488195,1729318232545,-354.6581441,0.00019726,2]
[340488196,1729318232554,-541.98,0.00020243,2]
[340488197,1729318232564,-1000.0,0.00021861,2]
[340488198,1729318232573,-250.0,0.00021888,2]
[340488199,1729318232582,-200.0,0.00021959,2]
[340488200,1729318232592,-500.0,0.00021998,2]
[340488201,1729318232601,-129.96876464,0.0002201,2]
[340488230,1729318238303,-120.03123536,0.0002201,2]
[340488231,1729318238312,-155.7,0.00022024,2]
[340488232,1729318238321,-158.74,0.00022024,2]
[340488233,1729318238330,-183.02851464,0.00022067,2]
[340488234,1729318238471,-66.97148536,0.00022067,2]
[340488235,1729318238480,-1421.2,0.00022137,2]
[340488236,1729318238489,-200.0,0.00022183,2]
[340488237,1729318238499,-150.9,0.00022342,30]
[340488238,1729318238508,-2751.0,0.00022345,2]
[340488239,1729318238517,-541.98,0.00022507,2]
[340488240,1729318238526,-288.0,0.00022528,2]
[340488241,1729318238535,-181.66,0.0002272,2]
[340488242,1729318238545,-158.48,0.00022803,2]
[340488243,1729318238554,-295.55,0.00023114,2]
[340488244,1729318238564,-400.0,0.000237,8]
[340488245,1729318238573,-28877.83988856,0.0002379,5]
[340488246,1729318238583,-8523.59806487,0.0002379,2]
[340488247,1729318238593,-561.711231,0.0002379,2]
[340488248,1729318238608,-1014.26609025,0.0002379,2]
[340488249,1729318238622,-757.258615,0.0002379,2]
[340488251,1729318240366,-2097.76519888,0.0002379,2]
[340488252,1729318240376,-156.50021193,0.000238,5]
[340488253,1729318240536,-25.54278807,0.000238,5]
[340488254,1729318240546,-800.0,0.000238,8]
[340488255,1729318240555,-608.7703148,0.0002389,2]
[340488256,1729318240564,-164.1118502,0.00023895,2]
[340488257,1729318240574,-1200.0,0.000239,8]
[340488258,1729318240583,-158.48,0.00023943,2]
[340488259,1729318240593,-8385.36437185,0.0002398,5]
[340488344,1729318243492,-993.56644484,0.0002398,5]
[340488346,1729318246254,-1264.77792325,0.0002398,5]
[340488347,1729318246420,-2723.97912946,0.0002398,5]
[340488348,1729318246430,-1646.0546029,0.00023985,5]
[340488349,1729318246441,-1718.84563765,0.00023985,5]
[340488350,1729318246479,-4615.91050022,0.00023985,5]
[340488352,1729318747310,180.0,0.00024929,120]
[340488353,1729319020520,392.0,0.00027,60]
[340488354,1729319096542,-156.85,0.00010959,2]
[340488355,1729319206139,550.0,0.0001,2]
[340488356,1729319226120,-600.0,0.00012,2]
[340488357,1729319226143,-258.17705489,0.0002085,2]
[340488358,1729319229107,-279.74294511,0.0002085,2]
[340488359,1729319229127,-892.37004229,0.000212,2]
[340488360,1729319253993,366.95638779,0.00021,30]
[340488361,1729319322032,150.0,0.00027,60]
[340488362,1729319322402,150.0,0.00027,60]
[340488363,1729319322790,150.0,0.00027,60]
[340488364,1729319323166,150.0,0.00027,60]
[340488365,1729319324201,184.832475,0.00027,60]
[340488377,1729319431585,-511.02,0.00020593,2]
[340488378,1729319431595,-1482.62995771,0.000212,2]
[340488379,1729319431605,-200.0,0.00022296,2]
[340488380,1729319431614,-200.0,0.00022303,2]
[340488381,1729319431623,-158.48,0.00022341,2]
[340488382,1729319431633,-250.0,0.00022349,2]
[340488383,1729319431643,-250.0,0.000224,2]
[340488384,1729319431652,-250.0,0.00022429,2]
[340488385,1729319431662,-164.13,0.00022444,2]
[340488386,1729319431671,-291.49112564,0.00022444,2]
[340488387,1729319431807,-208.49887436,0.00022444,2]
[340488388,1729319431816,-95.09037733,0.00022469,2]
[340488390,1729319437703,-704.90962267,0.00022469,2]